[Event "Djerba Festival Open-B 2025"]
[Site "Djerba"]
[Date "2025.02.21"]
[Round "6.11"]
[White "Tkitek Mohamed Mejed"]
[Black "Zouaghi, Ahmed"]
[Result "0-1"]
[Annotator "RC"]
[ECO "A37"]
[WhiteElo "1875"]
[BlackElo "1919"]
[PlyCount "106"]
[EventDate "2025.02.15"]
[EventType "swiss"]
[EventCountry "TUN"]
[SourceTitle "playchess.com"]
[Source "ChessBase"]
[SourceQuality "1"]
[TimeControl "5400+30"]

1. c4 {[%emt 0:00:10]} c5 {[%emt 0:00:06]} 2. g3 {[%emt 0:00:09]} g6 {[%emt 0:00:09]} 3. Nc3 {[%emt 0:00:18]} Bg7 {[%emt 0:00:24]} 4. Bg2 {[%emt 0:00:09]} Nc6 {[%emt 0:00:07]} 5. Nf3 {[%emt 0:00:35]} d6 {[%emt 0:03:17]} 6. a3 {[%emt 0:03:37]} a5 {[%emt 0:00:21]} 7. O-O {[%emt 0:00:57]} e5 {[%emt 0:01:24]} 8. h3 {[%emt 0:01:11]} Nge7 {[%emt 0:00:40]} 9. e4 {[%emt 0:00:39]} O-O {[%emt 0:01:05]} 10. d3 {[%emt 0:00:10]} h6 {[%emt 0:01:00]} 11. Nh4 {[%emt 0:02:26]} g5 {[%emt 0:03:35]} 12. Nf3 {[%emt 0:00:24]} f5 {[%emt 0:03:46]} 13. exf5 {[%emt 0:10:41]} Bxf5 {[%emt 0:00:27]} 14. Nh2 {[%emt 0:01:18]} Qd7 {[%emt 0:08:35]} 15. Nd5 {[%emt 0:04:39]} Nxd5 {[%emt 0:03:33]} 16. Bxd5+ {[%emt 0:00:14]} Kh8 {[%emt 0:04:17]} 17. Qh5 {[%emt 0:05:47]} Qe8 {[%emt 0:09:02]} 18. Qxe8 {[%emt 0:03:12]} Raxe8 {[%emt 0:00:37]} 19. Be4 {[%emt 0:00:41]} Bxh3 {[%emt 0:00:12]} 20. Rd1 {[%emt 0:00:41]} Bf5 {[%emt 0:04:22]} 21. Be3 {[%emt 0:00:42]} a4 {[%emt 0:12:06]} 22. g4 {[%emt 0:02:08]} Bxe4 {[%emt 0:04:20]} 23. dxe4 {[%emt 0:00:07]} Nd4 {[%emt 0:00:39]} 24. Nf1 {[%emt 0:03:53]} Rb8 {[%emt 0:02:08]} 25. Rab1 {[%emt 0:05:09]} b5 {[%emt 0:03:05]} 26. Nd2 {[%emt 0:00:36]} b4 {[%emt 0:00:43]} 27. Bxd4 {[%emt 0:00:20]} exd4 {[%emt 0:00:42]} 28. Kg2 {[%emt 0:01:36]} Rb7 {[%emt 0:02:16]} 29. Nf1 {[%emt 0:01:58]} Be5 {[%emt 0:02:57]} 30. Rd3 {[%emt 0:00:18]} Rfb8 {[%emt 0:02:39]} 31. Ng3 {[%emt 0:09:18]} Bxg3 {[%emt 0:02:35]} 32. Rxg3 {[%emt 0:00:10]} Kg7 {[%emt 0:06:01]} 33. Re1 {[%emt 0:02:48]} Re7 {[%emt 0:03:02]} 34. b3 {[%emt 0:02:16]} axb3 {[%emt 0:03:04]} 35. Rxb3 {[%emt 0:00:38]} Kf6 {[%emt 0:02:17]} 36. f3 {[%emt 0:04:16]} d5 {[%emt 0:06:36]} 37. cxd5 {[%emt 0:02:23]} c4 {[%emt 0:00:29]} 38. Rxb4 {[%emt 0:00:17]} Rxb4 {[%emt 0:00:06]} 39. axb4 {[%emt 0:00:15]} Ke5 {[%emt 0:00:03]} 40. Kf2 {[%emt 0:00:07]} Ra7 {[%emt 0:01:13]} 41. b5 {[%emt 0:01:34]} Kd6 {[%emt 0:03:49]} 42. Rb1 {[%emt 0:09:09]} Ra2+ {[%emt 0:00:16]} 43. Ke1 {[%emt 0:01:40]} c3 {[%emt 0:00:28]} 44. b6 {[%emt 0:04:14]} Rb2 {[%emt 0:00:21]} 45. Rd1 {[%emt 0:01:55]} Kc5 {[%emt 0:00:31]} 46. b7 {[%emt 0:00:57]} Rxb7 {[%emt 0:00:40]} 47. Ke2 {[%emt 0:02:01]} Kc4 {[%emt 0:00:28]} 48. f4 {[%emt 0:00:59]} d3+ {[%emt 0:01:57]} 49. Ke3 {[%emt 0:00:44]} gxf4+ {[%emt 0:00:56]} 50. Kxf4 {[%emt 0:00:09]} c2 {[%emt 0:00:10]} 51. Rh1 {[%emt 0:00:15]} d2 {[%emt 0:02:24]} 52. Rxh6 {[%emt 0:00:43]} d1=Q {[%emt 0:00:00]} 53. Rc6+ {[%emt 0:00:45]} Kd4 {[%emt 0:00:00]} 0-1

[Event "Djerba Festival Open-B 2025"]
[Site "Djerba"]
[Date "2025.02.21"]
[Round "6.12"]
[White "Banat, Rizlene"]
[Black "Minde, Baptiste"]
[Result "1/2-1/2"]
[Annotator "NA RC"]
[ECO "A08"]
[WhiteElo "1785"]
[BlackElo "1896"]
[PlyCount "130"]
[EventDate "2025.02.15"]
[EventType "swiss"]
[EventCountry "TUN"]
[SourceTitle "playchess.com"]
[Source "ChessBase"]
[SourceQuality "1"]
[TimeControl "5400+30"]

1. Nf3 {[%emt 0:07:21]} Nf6 {[%emt 0:00:45]} 2. g3 {[%emt 0:00:08]} d5 {[%emt 0:00:49]} 3. c4 {[%emt 0:00:16]} d4 {[%emt 0:00:11]} 4. d3 {[%emt 0:00:16]} c5 {[%emt 0:00:51]} 5. Bg2 {[%emt 0:01:44]} Nc6 {[%emt 0:00:44]} 6. Nbd2 {[%emt 0:01:48]} e5 {[%emt 0:00:56]} 7. O-O {[%emt 0:02:58]} Be7 {[%emt 0:00:53]} 8. a3 {[%emt 0:01:57]} O-O {[%emt 0:01:52]} 9. Ne1 {[%emt 0:01:25]} Bf5 {[%emt 0:05:40]} 10. Nc2 {[%emt 0:03:33]} Qd7 {[%emt 0:02:55]} 11. Rb1 {[%emt 0:05:19]} a5 {[%emt 0:01:32]} 12. Ne4 {[%emt 0:05:34]} Nxe4 {[%emt 0:05:28]} 13. Bxe4 {[%emt 0:02:00]} Bh3 {[%emt 0:01:57]} 14. Bg2 {[%emt 0:00:31]} Bxg2 {[%emt 0:05:32]} 15. Kxg2 {[%emt 0:00:08]} f5 {[%emt 0:00:03]} 16. f3 {[%emt 0:05:11]} Rad8 {[%emt 0:12:58]} 17. Bd2 {[%emt 0:09:31]} f4 {[%emt 0:05:51]} 18. g4 {[%emt 0:00:56]} h5 {[%emt 0:01:58]} 19. h3 {[%emt 0:04:58]} Rf6 {[%emt 0:04:51]} 20. b4 {[%emt 0:09:48]} Rg6 {[%emt 0:01:54]} 21. Rh1 {[%emt 0:03:35]} Kf7 {[%emt 0:04:16]} 22. b5 {[%emt 0:01:48]} Nb8 {[%emt 0:00:39]} 23. Bxa5 {[%emt 0:00:47]} Rh8 {[%emt 0:00:45]} 24. Qg1 {[%emt 0:01:52]} b6 {[%emt 0:11:01]} 25. Be1 {[%emt 0:05:15]} Qb7 {[%emt 0:04:57]} 26. Kf1 {[%emt 0:01:08]} hxg4 {[%emt 0:01:03]} 27. hxg4 {[%emt 0:01:35]} Rxg4 {[%emt 0:04:37]} 28. Qxg4 {[%emt 0:02:56]} Rxh1+ {[%emt 0:00:03]} 29. Kg2 {[%emt 0:00:11]} Rh6 {[%emt 0:00:18]} 30. Qf5+ {[%emt 0:02:26]} Bf6 {[%emt 0:00:21]} 31. Bf2 {[%emt 0:02:23]} Rg6+ {[%emt 0:01:11]} 32. Kf1 {[%emt 0:01:07]} Rg5 {[%emt 0:02:10]} 33. Qh3 {[%emt 0:02:09]} g6 {[%emt 0:00:23]} 34. Ra1 {[%emt 0:05:16]} Rh5 {[%emt 0:00:44]} 35. Qg4 {[%emt 0:00:00]} Rg5 {[%emt 0:00:16]} 36. Qh3 {[%emt 0:01:00]} Rh5 {[%emt 0:00:44]} 37. Qg4 {[%emt 0:01:39]} Rg5 {[%emt 0:04:34]} 38. Qh3 {[%emt 0:00:17]} Rh5 {[%emt 0:01:54]} 39. Qg4 {[%emt 0:00:08]} Nd7 {[%emt 0:01:15]} 40. a4 {[%emt 0:02:37]} Qa7 {[%emt 0:01:15]} 41. Be1 {[%emt 0:02:27]} Bd8 {[%emt 0:01:11]} 42. Ra3 {[%emt 0:03:34]} Nf6 {[%emt 0:00:23]} 43. Qc8 {[%emt 0:00:11]} Bc7 {[%emt 0:02:30]} 44. Na1 {[%emt 0:00:48]} Rh1+ {[%emt 0:03:46]} 45. Kf2 {[%emt 0:00:13]} Rh2+ {[%emt 0:02:06]} 46. Kf1 {[%emt 0:00:07]} Nh5 {[%emt 0:00:43]} 47. Qd7+ {[%emt 0:00:27]} Kf6 {[%emt 0:00:30]} 48. Qg4 {[%emt 0:02:00]} g5 {[%emt 0:00:56]} 49. Bf2 {[%emt 0:00:52]} Ng7 {[%emt 0:01:00]} 50. Kg1 {[%emt 0:00:25]} Rh8 {[%emt 0:00:23]} 51. Qd7 {[%emt 0:00:44]} Rd8 {[%emt 0:00:35]} 52. Qc6+ {[%emt 0:00:32]} Rd6 {[%emt 0:00:09]} 53. Qe4 {[%emt 0:00:09]} Nf5 {[%emt 0:00:05]} 54. Nb3 {[%emt 0:00:27]} Bd8 {[%emt 0:00:55]} 55. Be1 {[%emt 0:00:56]} Re6 {[%emt 0:00:16]} 56. a5 {[%emt 0:00:25]} Ne3 {[%emt 0:01:32]} 57. Ra2 {[%emt 0:00:34]} g4 {[%emt 0:00:53]} 58. a6 {[%emt 0:00:25]} gxf3 {[%emt 0:00:20]} 59. Qb7 {[%emt 0:00:27]} Qxb7 {[%emt 0:00:37]} 60. axb7 {[%emt 0:00:07]} Bc7 {[%emt 0:00:33]} 61. Ra8 {[%emt 0:00:07]} Ke7 {[%emt 0:00:37]} 62. exf3 {[%emt 0:01:27]} Rg6+ {[%emt 0:00:17]} 63. Kh1 {[%emt 0:00:16]} Rh6+ {[%emt 0:00:02]} 64. Kg1 {[%emt 0:00:06]} Rg6+ {[%emt 0:00:10]} 65. Kh1 {[%emt 0:00:06]} Rh6+ {[%emt 0:00:16]} 1/2-1/2

[Event "Djerba Festival Open-B 2025"]
[Site "Djerba"]
[Date "2025.02.21"]
[Round "6.13"]
[White "MEZGOURI NOUREDDINE"]
[Black "Louvrier Saint-Mary, Jean-Roger"]
[Result "1-0"]
[Annotator "NA RC"]
[ECO "D01"]
[WhiteElo "1891"]
[BlackElo "1839"]
[PlyCount "61"]
[EventDate "2025.02.15"]
[EventType "swiss"]
[EventCountry "TUN"]
[SourceTitle "playchess.com"]
[Source "ChessBase"]
[SourceQuality "1"]
[TimeControl "5400+30"]

1. d4 {[%emt 0:02:58]} Nf6 {[%emt 0:03:22]} 2. Nf3 e6 3. Bg5 {[%emt 0:01:32]} Be7 {[%emt 0:00:53]} 4. Nc3 {[%emt 0:00:24]} d5 {[%emt 0:01:38]} 5. e3 {[%emt 0:02:15]} Nbd7 {[%emt 0:02:38]} 6. Bf4 {[%emt 0:02:09]} Nh5 {[%emt 0:01:56]} 7. Bg3 {[%emt 0:03:16]} Nxg3 {[%emt 0:00:52]} 8. hxg3 {[%emt 0:00:26]} Bf6 9. Qd2 {[%emt 0:02:50]} c6 {[%emt 0:08:29]} 10. e4 {[%emt 0:00:57]} Nb6 {[%emt 0:09:05]} 11. O-O-O {[%emt 0:01:42]} Bd7 {[%emt 0:05:33]} 12. Bd3 {[%emt 0:01:08]} h6 {[%emt 0:01:04]} 13. g4 {[%emt 0:02:37]} g5 {[%emt 0:05:44]} 14. e5 {[%emt 0:02:15]} Be7 {[%emt 0:01:43]} 15. Rh5 {[%emt 0:01:37]} Rg8 {[%emt 0:05:15]} 16. Rxh6 {[%emt 0:00:55]} Nc4 {[%emt 0:06:45]} 17. Bxc4 {[%emt 0:00:30]} dxc4 {[%emt 0:00:03]} 18. Rdh1 {[%emt 0:01:28]} Qa5 {[%emt 0:00:46]} 19. Kb1 {[%emt 0:05:20]} O-O-O {[%emt 0:00:50]} 20. Ne4 {[%emt 0:00:48]} Qc7 {[%emt 0:03:00]} 21. Nfxg5 {[%emt 0:00:38]} c3 {[%emt 0:41:24]} 22. Qe3 {[%emt 0:01:06]} Qb6 {[%emt 0:00:00]} 23. b3 {[%emt 0:00:22]} Qa5 {[%emt 0:00:00]} 24. Nxf7 {[%emt 0:01:16]} Rdf8 {[%emt 0:00:00]} 25. Nfd6+ {[%emt 0:00:34]} Kc7 {[%emt 0:00:00]} 26. f3 {[%emt 0:00:35]} b5 {[%emt 0:00:00]} 27. Qxc3 {[%emt 0:00:15]} Qxc3 {[%emt 0:00:00]} 28. Nxc3 {[%emt 0:00:13]} Bxd6 {[%emt 0:00:00]} 29. exd6+ {[%emt 0:00:29]} Kxd6 {[%emt 0:00:00]} 30. Ne4+ {[%emt 0:00:28]} Kc7 {[%emt 0:00:00]} 31. Rh7 {[%emt 0:00:40]} 1-0

[Event "Djerba Festival Open-B 2025"]
[Site "Djerba"]
[Date "2025.02.21"]
[Round "6.14"]
[White "Weslati, Monem"]
[Black "Ktita, Dhafer"]
[Result "0-1"]
[Annotator "NA RC"]
[ECO "E62"]
[WhiteElo "1591"]
[BlackElo "1949"]
[PlyCount "92"]
[EventDate "2025.02.15"]
[EventType "swiss"]
[EventCountry "TUN"]
[SourceTitle "playchess.com"]
[Source "ChessBase"]
[SourceQuality "1"]
[TimeControl "5400+30"]

1. Nf3 {[%emt 0:00:10]} Nf6 {[%emt 0:00:05]} 2. d4 {[%emt 0:01:46]} g6 {[%emt 0:00:07]} 3. g3 {[%emt 0:00:14]} Bg7 {[%emt 0:00:06]} 4. Bg2 {[%emt 0:00:22]} O-O {[%emt 0:00:05]} 5. c4 {[%emt 0:01:11]} d6 {[%emt 0:00:07]} 6. Nc3 {[%emt 0:00:46]} Nc6 {[%emt 0:02:00]} 7. Bg5 {[%emt 0:00:42]} h6 {[%emt 0:00:21]} 8. Bd2 {[%emt 0:00:49]} Bg4 {[%emt 0:04:50]} 9. d5 {[%emt 0:02:46]} Na5 {[%emt 0:05:57]} 10. Qa4 {[%emt 0:04:38]} c5 {[%emt 0:00:56]} 11. dxc6 {[%emt 0:01:01]} Nxc6 {[%emt 0:00:25]} 12. Qc2 {[%emt 0:04:49]} Rc8 {[%emt 0:02:34]} 13. Qc1 {[%emt 0:04:33]} Kh7 {[%emt 0:00:27]} 14. a3 {[%emt 0:04:23]} Na5 {[%emt 0:01:13]} 15. Qd1 {[%emt 0:06:09]} Nxc4 {[%emt 0:00:21]} 16. Bc1 {[%emt 0:00:37]} Nd7 {[%emt 0:06:43]} 17. Rb1 {[%emt 0:05:03]} Bf5 {[%emt 0:02:33]} 18. Ra1 {[%emt 0:03:41]} Nxb2 {[%emt 0:00:20]} 19. Bxb2 {[%emt 0:01:21]} Bxc3+ {[%emt 0:02:25]} 20. Bxc3 {[%emt 0:00:13]} Rxc3 {[%emt 0:00:05]} 21. Qd2 {[%emt 0:15:45]} Rc2 {[%emt 0:01:34]} 22. Qb4 {[%emt 0:00:26]} Qb6 {[%emt 0:03:57]} 23. Nd4 {[%emt 0:01:38]} Rb2 {[%emt 0:00:26]} 24. Qxb6 {[%emt 0:01:19]} Rxb6 {[%emt 0:00:11]} 25. Nxf5 {[%emt 0:00:28]} gxf5 {[%emt 0:00:01]} 26. O-O {[%emt 0:00:49]} Rc8 {[%emt 0:01:54]} 27. Rab1 {[%emt 0:02:06]} Rxb1 {[%emt 0:00:32]} 28. Rxb1 {[%emt 0:00:10]} b6 {[%emt 0:00:08]} 29. a4 {[%emt 0:01:20]} Rc5 {[%emt 0:01:13]} 30. e4 {[%emt 0:01:23]} fxe4 {[%emt 0:00:17]} 31. Bxe4+ {[%emt 0:00:16]} Kg7 {[%emt 0:00:18]} 32. Rb4 {[%emt 0:01:54]} d5 {[%emt 0:01:42]} 33. Bd3 {[%emt 0:00:57]} Ne5 {[%emt 0:00:32]} 34. Be2 {[%emt 0:01:05]} Rc2 {[%emt 0:03:33]} 35. Kf1 {[%emt 0:02:56]} Rc1+ {[%emt 0:00:25]} 36. Kg2 {[%emt 0:00:16]} Rc5 {[%emt 0:00:00]} 37. Kg1 {[%emt 0:00:00]} Rc2 {[%emt 0:01:05]} 38. Kf1 {[%emt 0:01:14]} Rc1+ {[%emt 0:00:25]} 39. Kg2 {[%emt 0:00:16]} e6 {[%emt 0:06:05]} 40. Rf4 {[%emt 0:04:19]} Re1 {[%emt 0:02:56]} 41. Bb5 {[%emt 0:02:26]} Re4 {[%emt 0:00:44]} 42. Rxe4 {[%emt 0:00:21]} dxe4 {[%emt 0:00:01]} 43. h3 {[%emt 0:01:13]} f5 {[%emt 0:00:45]} 44. Kf1 {[%emt 0:01:22]} Kf6 {[%emt 0:01:56]} 45. Ke2 {[%emt 0:00:46]} Nf3 {[%emt 0:00:46]} 46. Ba6 {[%emt 0:02:17]} Ng1+ {[%emt 0:50:24]} 0-1

[Event "Djerba Festival Open-B 2025"]
[Site "Djerba"]
[Date "2025.02.21"]
[Round "6.15"]
[White "Abokrais, Kaled"]
[Black "Saidi, Bouziane"]
[Result "1-0"]
[Annotator "NA RC"]
[ECO "C55"]
[WhiteElo "1902"]
[BlackElo "1710"]
[PlyCount "107"]
[EventDate "2025.02.15"]
[EventType "swiss"]
[EventCountry "TUN"]
[SourceTitle "playchess.com"]
[Source "ChessBase"]
[SourceQuality "1"]
[TimeControl "5400+30"]

1. e4 e5 2. Nf3 Nc6 3. Bc4 d6 4. h3 Be7 5. Nc3 Nf6 6. d3 Na5 7. Bb3 Nxb3 8. axb3 O-O 9. O-O c6 10. Be3 b6 11. Nd2 Qc7 12. f4 Bb7 13. fxe5 dxe5 14. Nc4 Rfd8 {[%emt 1:37:30]} 15. Rf5 {[%emt 1:38:00]} b5 {[%emt 0:00:30]} 16. Nd2 {[%emt 0:00:30]} b4 {[%emt 0:00:30]} 17. Na4 {[%emt 0:00:30]} c5 {[%emt 0:00:30]} 18. Qe1 {[%emt 0:00:30]} h6 {[%emt 0:00:30]} 19. Qg3 {[%emt 0:00:30]} Kh7 {[%emt 0:00:30]} 20. Qf2 {[%emt 0:00:30]} Bc8 {[%emt 0:00:30]} 21. Rf3 {[%emt 0:00:30]} Bd7 {[%emt 0:00:30]} 22. Bxc5 {[%emt 0:00:30]} Bxc5 {[%emt 0:00:30]} 23. Qxc5 {[%emt 0:00:30]} Qxc5+ {[%emt 0:00:30]} 24. Nxc5 {[%emt 0:00:30]} Rac8 {[%emt 0:00:30]} 25. Nxd7 {[%emt 0:00:30]} Rxd7 {[%emt 0:00:30]} 26. Nc4 {[%emt 0:00:30]} Re7 {[%emt 0:00:30]} 27. Ra5 {[%emt 0:00:30]} Ne8 {[%emt 0:00:30]} 28. Rb5 {[%emt 0:00:30]} f6 {[%emt 0:00:30]} 29. Rxb4 {[%emt 0:00:30]} Rd7 {[%emt 0:00:30]} 30. Rf1 {[%emt 0:00:30]} Rc6 {[%emt 0:00:30]} 31. Ra1 {[%emt 0:00:30]} a6 {[%emt 0:00:30]} 32. Rb6 {[%emt 0:00:30]} Rxb6 {[%emt 0:00:30]} 33. Nxb6 {[%emt 0:00:30]} Rb7 {[%emt 0:00:30]} 34. Nc4 {[%emt 0:00:30]} Nc7 {[%emt 0:00:30]} 35. Kf2 {[%emt 0:00:30]} Ne6 {[%emt 0:00:30]} 36. Rxa6 {[%emt 0:00:30]} Nd4 {[%emt 0:00:30]} 37. c3 {[%emt 0:00:30]} Nxb3 {[%emt 0:00:30]} 38. Rb6 {[%emt 0:00:30]} Rxb6 {[%emt 0:00:30]} 39. Nxb6 Kg6 {[%emt 0:00:30]} 40. Nc4 {[%emt 0:01:00]} Kf7 {[%emt 0:00:30]} 41. Ke3 {[%emt 0:00:30]} Ke6 {[%emt 0:00:30]} 42. Nd2 {[%emt 0:00:30]} Nc5 {[%emt 0:00:30]} 43. b4 {[%emt 0:00:30]} Na4 {[%emt 0:00:30]} 44. c4 {[%emt 0:00:30]} Nc3 {[%emt 0:00:30]} 45. Nb3 {[%emt 0:00:30]} Nd1+ {[%emt 0:00:30]} 46. Kd2 {[%emt 0:00:30]} Nf2 {[%emt 0:00:30]} 47. Ke3 {[%emt 0:00:30]} Nd1+ 48. Kd2 Nf2 49. Ke2 {[%emt 0:01:00]} Nh1 {[%emt 0:01:30]} 50. Kf3 {[%emt 0:00:30]} h5 {[%emt 0:00:30]} 51. h4 {[%emt 0:00:30]} f5 {[%emt 0:00:30]} 52. exf5+ {[%emt 0:00:30]} Kxf5 {[%emt 0:00:30]} 53. b5 {[%emt 0:00:30]} g5 {[%emt 0:00:30]} 54. g3 {[%emt 0:00:30]} 1-0

[Event "Djerba Festival Open-B 2025"]
[Site "Djerba"]
[Date "2025.02.21"]
[Round "6.16"]
[White "Chargui, Saleh"]
[Black "Kempinski, Andre"]
[Result "1-0"]
[Annotator "NA RC"]
[ECO "A85"]
[WhiteElo "1709"]
[BlackElo "1888"]
[PlyCount "107"]
[EventDate "2025.02.15"]
[EventType "swiss"]
[EventCountry "TUN"]
[SourceTitle "playchess.com"]
[Source "ChessBase"]
[SourceQuality "1"]
[TimeControl "5400+30"]

1. d4 {[%emt 0:00:01]} f5 {[%emt 0:00:16]} 2. c4 {[%emt 0:00:09]} Nf6 {[%emt 0:00:23]} 3. Nc3 {[%emt 0:00:11]} e6 {[%emt 0:00:36]} 4. a3 {[%emt 0:00:24]} a5 {[%emt 0:01:42]} 5. Nf3 {[%emt 0:00:38]} d6 {[%emt 0:00:24]} 6. Bg5 {[%emt 0:00:37]} Be7 {[%emt 0:00:13]} 7. h3 {[%emt 0:00:39]} O-O {[%emt 0:00:32]} 8. e3 {[%emt 0:00:22]} Qe8 {[%emt 0:04:49]} 9. Nb5 {[%emt 0:01:18]} Bd8 {[%emt 0:01:21]} 10. Bf4 {[%emt 0:01:14]} Nbd7 {[%emt 0:01:13]} 11. Be2 {[%emt 0:02:13]} e5 {[%emt 0:01:17]} 12. dxe5 {[%emt 0:00:30]} dxe5 {[%emt 0:00:04]} 13. Bg5 {[%emt 0:01:42]} Kh8 {[%emt 0:01:56]} 14. Bh4 {[%emt 0:03:38]} Ra6 {[%emt 0:14:25]} 15. Qc2 {[%emt 0:03:25]} Nc5 {[%emt 0:05:47]} 16. O-O-O {[%emt 0:03:06]} Qe7 {[%emt 0:05:56]} 17. Bg3 {[%emt 0:08:15]} Re6 {[%emt 0:04:06]} 18. Bh4 {[%emt 0:07:35]} Nce4 {[%emt 0:07:10]} 19. Bd3 {[%emt 0:03:33]} c6 {[%emt 0:05:41]} 20. Nc3 {[%emt 0:03:34]} Nxc3 {[%emt 0:00:25]} 21. Qxc3 {[%emt 0:01:47]} e4 {[%emt 0:01:00]} 22. Nd4 {[%emt 0:02:34]} exd3 {[%emt 0:01:02]} 23. Nxe6 {[%emt 0:00:54]} Bxe6 {[%emt 0:00:41]} 24. Rxd3 {[%emt 0:00:36]} Qf7 {[%emt 0:03:22]} 25. Rhd1 {[%emt 0:03:21]} Bc7 {[%emt 0:00:53]} 26. Bxf6 {[%emt 0:03:05]} gxf6 {[%emt 0:03:09]} 27. b3 {[%emt 0:00:35]} Qe7 {[%emt 0:04:02]} 28. Rf1 {[%emt 0:00:00]} Qf7 {[%emt 0:00:00]} 29. Rfd1 {[%emt 0:01:00]} Qe7 {[%emt 0:01:00]} 30. Rf1 {[%emt 0:00:00]} Qf7 {[%emt 0:00:00]} 31. Rfd1 {[%emt 0:01:00]} Qe7 {[%emt 0:01:00]} 32. c5 {[%emt 0:05:52]} Bd5 {[%emt 0:02:54]} 33. f4 {[%emt 0:04:52]} Qe6 {[%emt 0:07:04]} 34. R1d2 {[%emt 0:00:00]} Qe7 {[%emt 0:00:00]} 35. Rd1 {[%emt 0:01:00]} Qe6 {[%emt 0:01:00]} 36. Rg1 {[%emt 0:00:00]} Qe7 {[%emt 0:00:00]} 37. Rgd1 {[%emt 0:01:00]} Qe6 {[%emt 0:01:00]} 38. Rg1 {[%emt 0:05:25]} Qe7 {[%emt 0:00:00]} 39. Rgd1 {[%emt 0:00:00]} Qe6 {[%emt 0:01:00]} 40. Rg1 {[%emt 0:01:00]} Re8 {[%emt 0:13:45]} 41. g4 {[%emt 0:05:11]} Be4 {[%emt 0:01:37]} 42. Rd2 {[%emt 0:03:00]} fxg4 {[%emt 0:02:03]} 43. hxg4 {[%emt 0:01:10]} h6 {[%emt 0:02:01]} 44. g5 {[%emt 0:01:35]} hxg5 {[%emt 0:03:02]} 45. Rxg5 {[%emt 0:00:33]} Rg8 {[%emt 0:01:38]} 46. Rh2+ {[%emt 0:00:39]} Bh7 {[%emt 0:00:09]} 47. Rd2 {[%emt 0:00:21]} Be4 {[%emt 0:00:51]} 48. Rh2+ {[%emt 0:00:39]} Bh7 49. Rgh5 {[%emt 0:02:31]} Rg7 {[%emt 0:01:11]} 50. Rg5 {[%emt 0:00:00]} Rg8 51. Rgh5 {[%emt 0:01:00]} Rg7 {[%emt 0:01:00]} 52. Rh6 {[%emt 0:02:22]} Qf5 {[%emt 0:01:13]} 53. Rc2 {[%emt 0:05:24]} Rg1+ {[%emt 0:01:07]} 54. Kb2 {[%emt 0:16:00]} 1-0

[Event "Djerba Festival Open-B 2025"]
[Site "Djerba"]
[Date "2025.02.21"]
[Round "6.17"]
[White "Baba, Jihed"]
[Black "Minde, Timothe"]
[Result "0-1"]
[Annotator "NA RC"]
[ECO "C11"]
[WhiteElo "1669"]
[BlackElo "1879"]
[PlyCount "80"]
[EventDate "2025.02.15"]
[EventType "swiss"]
[EventCountry "TUN"]
[SourceTitle "playchess.com"]
[Source "ChessBase"]
[SourceQuality "1"]
[TimeControl "5400+30"]

1. e4 {[%emt 0:00:58]} e6 {[%emt 0:00:46]} 2. d4 {[%emt 0:00:08]} d5 {[%emt 0:00:12]} 3. Nc3 {[%emt 0:00:14]} Nf6 {[%emt 0:00:27]} 4. e5 {[%emt 0:00:50]} Nfd7 {[%emt 0:00:09]} 5. f4 {[%emt 0:00:22]} c5 {[%emt 0:00:16]} 6. Nf3 {[%emt 0:00:07]} Nc6 {[%emt 0:00:11]} 7. Be3 {[%emt 0:00:04]} cxd4 {[%emt 0:02:07]} 8. Nxd4 {[%emt 0:00:14]} Bc5 {[%emt 0:00:22]} 9. Qd2 {[%emt 0:00:16]} a6 {[%emt 0:00:17]} 10. a3 {[%emt 0:14:42]} O-O {[%emt 0:20:03]} 11. b4 {[%emt 0:00:55]} Bxd4 {[%emt 0:01:13]} 12. Bxd4 {[%emt 0:00:06]} Nxd4 {[%emt 0:00:23]} 13. Qxd4 {[%emt 0:00:03]} Nb6 {[%emt 0:08:04]} 14. Qd2 {[%emt 0:06:44]} Bd7 {[%emt 0:02:02]} 15. Bd3 {[%emt 0:00:39]} Rc8 {[%emt 0:01:04]} 16. Ne2 {[%emt 0:00:47]} Nc4 {[%emt 0:03:30]} 17. Bxc4 {[%emt 0:00:18]} Rxc4 {[%emt 0:00:11]} 18. Nd4 {[%emt 0:00:26]} Qb6 {[%emt 0:05:25]} 19. c3 {[%emt 0:02:07]} Rfc8 {[%emt 0:00:43]} 20. Rc1 {[%emt 0:00:11]} Qc7 {[%emt 0:01:17]} 21. Ne2 {[%emt 0:02:57]} Re4 {[%emt 0:01:41]} 22. O-O {[%emt 0:02:06]} Bb5 {[%emt 0:00:18]} 23. Rfe1 {[%emt 0:09:10]} Bxe2 {[%emt 0:03:33]} 24. Rxe2 {[%emt 0:00:02]} Rc4 {[%emt 0:00:18]} 25. Re3 {[%emt 0:08:44]} d4 {[%emt 0:05:21]} 26. Rd3 {[%emt 0:06:53]} Rxc3 {[%emt 0:11:46]} 27. Rcxc3 {[%emt 0:00:29]} dxc3 {[%emt 0:00:14]} 28. Qc2 {[%emt 0:01:56]} Qc4 {[%emt 0:01:00]} 29. g3 {[%emt 0:00:29]} g6 {[%emt 0:00:31]} 30. Rd7 {[%emt 0:07:38]} Qc6 {[%emt 0:01:21]} 31. Rd6 {[%emt 0:02:32]} Qc4 {[%emt 0:01:08]} 32. Rd7 {[%emt 0:02:07]} Kg7 {[%emt 0:04:57]} 33. Rd1 {[%emt 0:07:07]} Qc6 {[%emt 0:01:31]} 34. Rd6 {[%emt 0:00:24]} Qf3 {[%emt 0:00:56]} 35. Rd1 {[%emt 0:03:26]} h5 {[%emt 0:01:58]} 36. Rf1 {[%emt 0:17:36]} Qe3+ {[%emt 0:03:59]} 37. Kg2 {[%emt 0:03:38]} Rd8 {[%emt 0:00:29]} 38. Kh3 {[%emt 0:01:23]} Rd2 {[%emt 0:00:24]} 39. Qc1 {[%emt 0:00:20]} Qe2 {[%emt 0:00:39]} 40. Rh1 {[%emt 0:00:16]} Qg4# {[%emt 0:00:09]} 0-1